[Event "Titled Tuesday Blitz August 08 Early 2023"]
[White "Legenia, Artem"]
[Black "Skliarov, Viktor"]
[WhiteFideId "14136945"]
[BlackFideId "14106736"]
[WhiteElo "2370"]
[BlackElo "2694"]
[Result "1-0"]
[Round "1"]
[TimeControl "180+1"]
[Date "2023.08.08"]
[WhiteClock "0:00:25"]
[BlackClock "0:00:12"]
[Board "137"]

1. Nf3 {[%clk 0:02:50]}  g6 {[%clk 0:02:59]} 2. e4 {[%clk 0:02:48]}  Bg7 {[%clk 0:03:00]} 3. Nc3 {[%clk 0:02:47]}  c5 {[%clk 0:02:59]} 4. d4 {[%clk 0:02:44]}  cxd4 {[%clk 0:02:59]} 5. Nxd4 {[%clk 0:02:45]}  Nc6 {[%clk 0:03:00]} 6. Be3 {[%clk 0:02:42]}  Nf6 {[%clk 0:03:00]} 7. Nb3 {[%clk 0:02:35]}  O-O {[%clk 0:02:58]} 8. Be2 {[%clk 0:02:35]}  a6 {[%clk 0:02:59]} 9. a4 {[%clk 0:02:33]}  d6 {[%clk 0:02:57]} 10. O-O {[%clk 0:02:30]}  Be6 {[%clk 0:02:57]} 11. Nd4 {[%clk 0:02:12]}  Nxd4 {[%clk 0:02:55]} 12. Bxd4 {[%clk 0:02:12]}  Rc8 {[%clk 0:02:55]} 13. f4 {[%clk 0:02:09]}  Bc4 {[%clk 0:02:50]} 14. Kh1 {[%clk 0:02:07]}  Bxe2 {[%clk 0:02:38]} 15. Qxe2 {[%clk 0:02:07]}  Qa5 {[%clk 0:02:38]} 16. Rad1 {[%clk 0:02:00]}  Qb4 {[%clk 0:02:26]} 17. e5 {[%clk 0:01:54]}  Nd7 {[%clk 0:01:40]} 18. Nd5 {[%clk 0:01:49]}  Qc4 {[%clk 0:01:40]} 19. Nxe7+ {[%clk 0:01:48]}  Kh8 {[%clk 0:01:38]} 20. Qe3 {[%clk 0:01:32]}  dxe5 {[%clk 0:01:21]} 21. fxe5 {[%clk 0:01:26]}  Qe6 {[%clk 0:01:20]} 22. Nxc8 {[%clk 0:01:25]}  Rxc8 {[%clk 0:01:16]} 23. Bc3 {[%clk 0:01:21]}  Nxe5 {[%clk 0:01:06]} 24. Rde1 {[%clk 0:01:20]}  Re8 {[%clk 0:01:01]} 25. Qe4 {[%clk 0:01:15]}  Re7 {[%clk 0:00:47]} 26. Rd1 {[%clk 0:01:11]}  h5 {[%clk 0:00:46]} 27. Rfe1 {[%clk 0:01:08]}  Kh7 {[%clk 0:00:44]} 28. Qd5 {[%clk 0:01:00]}  Qf5 {[%clk 0:00:32]} 29. Rf1 {[%clk 0:00:39]}  Qxc2 {[%clk 0:00:29]} 30. Rde1 {[%clk 0:00:37]}  f6 {[%clk 0:00:23]} 31. Bxe5 {[%clk 0:00:36]}  Rxe5 {[%clk 0:00:20]} 32. Rxe5 {[%clk 0:00:35]}  fxe5 {[%clk 0:00:21]} 33. h3 {[%clk 0:00:33]}  Qxb2 {[%clk 0:00:21]} 34. Rf7 {[%clk 0:00:32]}  h4 {[%clk 0:00:14]} 35. Qxb7 {[%clk 0:00:27]}  Qxb7 {[%clk 0:00:09]} 36. Rxb7 {[%clk 0:00:26]}  Kh6 {[%clk 0:00:09]} 37. Ra7 {[%clk 0:00:26]}  Kg5 {[%clk 0:00:08]} 38. Rxa6 {[%clk 0:00:27]}  Kf5 {[%clk 0:00:09]} 39. Rc6 {[%clk 0:00:27]}  Bh6 {[%clk 0:00:09]} 40. a5 {[%clk 0:00:26]}  Be3 {[%clk 0:00:10]} 41. a6 {[%clk 0:00:26]}  e4 {[%clk 0:00:10]} 42. Rc7 {[%clk 0:00:26]}  Bd4 {[%clk 0:00:10]} 43. a7 {[%clk 0:00:26]}  Bxa7 {[%clk 0:00:10]} 44. Rxa7 {[%clk 0:00:26]}  Kf4 {[%clk 0:00:11]} 45. Kg1 {[%clk 0:00:27]}  g5 {[%clk 0:00:11]} 46. Kf1 {[%clk 0:00:27]}  Kg3 {[%clk 0:00:12]} 47. Re7 {[%clk 0:00:26]}  Kf4 {[%clk 0:00:11]} 48. Ke2 {[%clk 0:00:26]}  Kg3 {[%clk 0:00:10]} 49. Rxe4 {[%clk 0:00:26]}  Kxg2 {[%clk 0:00:11]} 50. Rg4+ {[%clk 0:00:24]}  Kxh3 {[%clk 0:00:11]} 51. Kf3 {[%clk 0:00:24]}  Kh2 {[%clk 0:00:12]} 52. Rxg5 {[%clk 0:00:24]}  h3 {[%clk 0:00:13]} 53. Rg3 {[%clk 0:00:25]}  Kh1 {[%clk 0:00:13]} 54. Rxh3+ {[%clk 0:00:25]}  Kg1 {[%clk 0:00:13]} 55. Rg3+ {[%clk 0:00:25]}  Kf1 {[%clk 0:00:14]} 56. Rg2 {[%clk 0:00:24]}  Ke1 {[%clk 0:00:12]} 57. Rf2 {[%clk 0:00:25]} 1-0


[Site "https://www.chess.com"]

[Event "Titled Tuesday Blitz August 08 Early 2023"]
[White "Koshulyan, Egor A."]
[Black "Bures, Vit"]
[WhiteFideId "24237000"]
[BlackFideId "309052"]
[WhiteElo "2689"]
[BlackElo "2367"]
[Result "1-0"]
[Round "1"]
[TimeControl "180+1"]
[Date "2023.08.08"]
[WhiteClock "0:00:32"]
[BlackClock "0:00:00"]
[Board "140"]

1. e4 {[%clk 0:02:59]}  e5 {[%clk 0:02:58]} 2. Nf3 {[%clk 0:02:59]}  Nc6 {[%clk 0:02:59]} 3. Bb5 {[%clk 0:02:59]}  a6 {[%clk 0:02:59]} 4. Ba4 {[%clk 0:02:59]}  Nf6 {[%clk 0:02:59]} 5. O-O {[%clk 0:03:00]}  Be7 {[%clk 0:03:00]} 6. Re1 {[%clk 0:02:58]}  b5 {[%clk 0:03:00]} 7. Bb3 {[%clk 0:02:58]}  O-O {[%clk 0:03:00]} 8. h3 {[%clk 0:02:59]}  Bb7 {[%clk 0:03:00]} 9. d3 {[%clk 0:02:42]}  d5 {[%clk 0:03:00]} 10. Nc3 {[%clk 0:02:27]}  dxe4 {[%clk 0:02:48]} 11. Nxe4 {[%clk 0:02:26]}  Nxe4 {[%clk 0:02:38]} 12. Rxe4 {[%clk 0:02:27]}  Nd4 {[%clk 0:02:25]} 13. Rxe5 {[%clk 0:02:05]}  Nxf3+ {[%clk 0:02:06]} 14. gxf3 {[%clk 0:02:06]}  Bd6 {[%clk 0:01:56]} 15. Rg5 {[%clk 0:02:03]}  Qf6 {[%clk 0:01:39]} 16. Bd5 {[%clk 0:01:46]}  Bxd5 {[%clk 0:01:20]} 17. Rxd5 {[%clk 0:01:47]}  Rfe8 {[%clk 0:01:13]} 18. Be3 {[%clk 0:01:40]}  Qe6 {[%clk 0:00:59]} 19. Rh5 {[%clk 0:01:39]}  g6 {[%clk 0:00:59]} 20. Rh4 {[%clk 0:01:38]}  Qf6 {[%clk 0:00:53]} 21. Rg4 {[%clk 0:01:34]}  Qxb2 {[%clk 0:00:47]} 22. Bd4 {[%clk 0:01:34]}  Qa3 {[%clk 0:00:45]} 23. f4 {[%clk 0:01:17]}  f5 {[%clk 0:00:38]} 24. Rg2 {[%clk 0:01:17]}  Bxf4 {[%clk 0:00:33]} 25. Qf3 {[%clk 0:01:17]}  Qd6 {[%clk 0:00:33]} 26. c3 {[%clk 0:01:14]}  Rad8 {[%clk 0:00:33]} 27. Rd1 {[%clk 0:01:13]}  Be5 {[%clk 0:00:24]} 28. Be3 {[%clk 0:01:12]}  Bxc3 {[%clk 0:00:21]} 29. Qxf5 {[%clk 0:01:11]}  Qf6 {[%clk 0:00:16]} 30. Qc5 {[%clk 0:01:07]}  Be5 {[%clk 0:00:12]} 31. Bg5 {[%clk 0:01:06]}  Qf5 {[%clk 0:00:05]} 32. Qc2 {[%clk 0:00:59]}  Rd4 {[%clk 0:00:04]} 33. Re1 {[%clk 0:00:55]}  Rf8 {[%clk 0:00:03]} 34. Be3 {[%clk 0:00:50]}  Rxd3 {[%clk 0:00:03]} 35. Qc6 {[%clk 0:00:47]}  Bg7 {[%clk 0:00:03]} 36. Qxc7 {[%clk 0:00:43]}  Qf7 {[%clk 0:00:03]} 37. Qc6 {[%clk 0:00:43]}  Rd7 {[%clk 0:00:02]} 38. Qxa6 {[%clk 0:00:42]}  b4 {[%clk 0:00:03]} 39. Qb5 {[%clk 0:00:41]}  Bc3 {[%clk 0:00:02]} 40. Re2 {[%clk 0:00:41]}  Re8 {[%clk 0:00:02]} 41. Rg4 {[%clk 0:00:38]}  Rd1+ {[%clk 0:00:02]} 42. Kg2 {[%clk 0:00:39]}  Rf8 {[%clk 0:00:01]} 43. Qc6 {[%clk 0:00:35]}  Rd5 {[%clk 0:00:01]} 44. Rf4 {[%clk 0:00:35]}  Rf5 {[%clk 0:00:02]} 45. Rxf5 {[%clk 0:00:32]}  Qxf5 {[%clk 0:00:00]} 46. Bh6 {[%clk 0:00:32]} 1-0


[Site "https://www.chess.com"]

[Event "Titled Tuesday Blitz August 08 Early 2023"]
[White "Nathan, Nitish"]
[Black "Matinian, Nikita"]
[WhiteFideId "30927870"]
[BlackFideId "24129100"]
[WhiteElo "2362"]
[BlackElo "2675"]
[Result "1/2-1/2"]
[Round "1"]
[TimeControl "180+1"]
[Date "2023.08.08"]
[WhiteClock "0:00:52"]
[BlackClock "0:00:05"]
[Board "143"]

1. d4 {[%clk 0:03:00]}  Nf6 {[%clk 0:02:55]} 2. Bf4 {[%clk 0:02:59]}  g6 {[%clk 0:02:55]} 3. e3 {[%clk 0:02:59]}  Bg7 {[%clk 0:02:55]} 4. Nf3 {[%clk 0:02:58]}  O-O {[%clk 0:02:50]} 5. h3 {[%clk 0:02:58]}  d6 {[%clk 0:02:51]} 6. Be2 {[%clk 0:02:58]}  Nbd7 {[%clk 0:02:51]} 7. O-O {[%clk 0:02:58]}  e5 {[%clk 0:02:49]} 8. dxe5 {[%clk 0:02:56]}  Nh5 {[%clk 0:02:48]} 9. Bh2 {[%clk 0:02:55]}  dxe5 {[%clk 0:02:48]} 10. c4 {[%clk 0:02:50]}  e4 {[%clk 0:02:47]} 11. Nd4 {[%clk 0:02:49]}  Nhf6 {[%clk 0:02:36]} 12. Nc3 {[%clk 0:02:48]}  c6 {[%clk 0:02:34]} 13. Qc2 {[%clk 0:02:43]}  Qe7 {[%clk 0:02:33]} 14. Rad1 {[%clk 0:02:42]}  Re8 {[%clk 0:02:24]} 15. a3 {[%clk 0:02:39]}  a5 {[%clk 0:02:20]} 16. Rd2 {[%clk 0:02:35]}  Bf8 {[%clk 0:02:04]} 17. Rfd1 {[%clk 0:02:33]}  Nc5 {[%clk 0:02:02]} 18. b4 {[%clk 0:02:31]}  axb4 {[%clk 0:02:00]} 19. axb4 {[%clk 0:02:32]}  Nd3 {[%clk 0:02:01]} 20. b5 {[%clk 0:02:28]}  c5 {[%clk 0:01:57]} 21. Nb3 {[%clk 0:02:24]}  Bf5 {[%clk 0:01:57]} 22. g4 {[%clk 0:02:19]}  Be6 {[%clk 0:01:56]} 23. Bxd3 {[%clk 0:02:16]}  exd3 {[%clk 0:01:57]} 24. Qxd3 {[%clk 0:02:16]}  Ra3 {[%clk 0:01:47]} 25. Nb1 {[%clk 0:02:09]}  Rxb3 {[%clk 0:01:43]} 26. Qxb3 {[%clk 0:02:08]}  Ne4 {[%clk 0:01:44]} 27. Qd3 {[%clk 0:02:02]}  Nxd2 {[%clk 0:01:41]} 28. Rxd2 {[%clk 0:02:03]}  Qh4 {[%clk 0:01:41]} 29. Qf1 {[%clk 0:02:00]}  Ra8 {[%clk 0:01:31]} 30. Nc3 {[%clk 0:01:55]}  h5 {[%clk 0:01:24]} 31. Bg3 {[%clk 0:01:47]}  Qf6 {[%clk 0:01:24]} 32. Ne4 {[%clk 0:01:47]}  Qg7 {[%clk 0:01:22]} 33. gxh5 {[%clk 0:01:44]}  Ra1 {[%clk 0:01:21]} 34. Rd1 {[%clk 0:01:42]}  Bxh3 {[%clk 0:01:21]} 35. Qe1 {[%clk 0:01:37]}  Rxd1 {[%clk 0:01:21]} 36. Qxd1 {[%clk 0:01:38]}  Bf5 {[%clk 0:01:22]} 37. Nd6 {[%clk 0:01:35]}  Be6 {[%clk 0:01:17]} 38. Nxb7 {[%clk 0:01:31]}  Bxc4 {[%clk 0:01:17]} 39. b6 {[%clk 0:01:30]}  Ba6 {[%clk 0:01:01]} 40. Nd6 {[%clk 0:01:30]}  Bxd6 {[%clk 0:00:59]} 41. Qxd6 {[%clk 0:01:31]}  Qa1+ {[%clk 0:00:47]} 42. Kh2 {[%clk 0:01:30]}  Qb2 {[%clk 0:00:14]} 43. Qb8+ {[%clk 0:01:27]}  Kh7 {[%clk 0:00:15]} 44. hxg6+ {[%clk 0:01:27]}  Kxg6 {[%clk 0:00:12]} 45. Qd6+ {[%clk 0:01:25]}  f6 {[%clk 0:00:12]} 46. Qe6 {[%clk 0:01:17]}  Qe2 {[%clk 0:00:10]} 47. Qg8+ {[%clk 0:01:17]}  Kf5 {[%clk 0:00:10]} 48. Qd5+ {[%clk 0:01:16]}  Kg6 {[%clk 0:00:10]} 49. b7 {[%clk 0:01:15]}  Bxb7 {[%clk 0:00:05]} 50. Qxb7 {[%clk 0:01:15]}  Qh5+ {[%clk 0:00:05]} 51. Kg2 {[%clk 0:01:14]}  Qf5 {[%clk 0:00:05]} 52. Qc7 {[%clk 0:01:12]}  Qd5+ {[%clk 0:00:05]} 53. Kh2 {[%clk 0:01:12]}  c4 {[%clk 0:00:05]} 54. Bf4 {[%clk 0:01:11]}  Qd3 {[%clk 0:00:05]} 55. e4 {[%clk 0:01:06]}  Qxe4 {[%clk 0:00:04]} 56. Be3 {[%clk 0:01:06]}  Qd3 {[%clk 0:00:04]} 57. Qg3+ {[%clk 0:01:05]}  Kf7 {[%clk 0:00:03]} 58. Qc7+ {[%clk 0:01:05]}  Kg6 {[%clk 0:00:03]} 59. Kg2 {[%clk 0:01:00]}  c3 {[%clk 0:00:04]} 60. Qg3+ {[%clk 0:00:59]}  Kf7 {[%clk 0:00:04]} 61. Qc7+ {[%clk 0:00:57]}  Kg6 {[%clk 0:00:05]} 62. Qg3+ {[%clk 0:00:58]}  Kf7 {[%clk 0:00:05]} 63. Qc7+ {[%clk 0:00:52]}  Kg6 {[%clk 0:00:05]} 1/2-1/2


[Site "https://www.chess.com"]

[Event "Titled Tuesday Blitz August 08 Early 2023"]
[White "Shapiro, Daniel"]
[Black "Zeynalli, Rashad"]
[WhiteFideId "2001780"]
[BlackFideId "13403320"]
[WhiteElo "2361"]
[BlackElo "2675"]
[Result "1/2-1/2"]
[Round "1"]
[TimeControl "180+1"]
[Date "2023.08.08"]
[WhiteClock "0:00:09"]
[BlackClock "0:00:08"]
[Board "145"]

1. d4 {[%clk 0:03:00]}  d5 {[%clk 0:02:58]} 2. c4 {[%clk 0:02:57]}  e6 {[%clk 0:02:59]} 3. Nf3 {[%clk 0:02:56]}  Nf6 {[%clk 0:02:59]} 4. g3 {[%clk 0:02:56]}  Be7 {[%clk 0:02:59]} 5. Bg2 {[%clk 0:02:56]}  O-O {[%clk 0:02:59]} 6. O-O {[%clk 0:02:56]}  dxc4 {[%clk 0:03:00]} 7. Ne5 {[%clk 0:02:56]}  Nc6 {[%clk 0:02:59]} 8. Bxc6 {[%clk 0:02:56]}  bxc6 {[%clk 0:03:00]} 9. Nxc6 {[%clk 0:02:56]}  Qe8 {[%clk 0:03:01]} 10. Nxe7+ {[%clk 0:02:56]}  Qxe7 {[%clk 0:03:01]} 11. Qa4 {[%clk 0:02:55]}  c5 {[%clk 0:03:00]} 12. Qxc4 {[%clk 0:02:49]}  cxd4 {[%clk 0:02:59]} 13. Qxd4 {[%clk 0:02:49]}  e5 {[%clk 0:02:59]} 14. Qh4 {[%clk 0:02:44]}  Rb8 {[%clk 0:02:58]} 15. Nc3 {[%clk 0:02:43]}  Rd8 {[%clk 0:02:54]} 16. Bg5 {[%clk 0:02:00]}  Rxb2 {[%clk 0:02:47]} 17. Ne4 {[%clk 0:01:52]}  Rb6 {[%clk 0:02:29]} 18. Rab1 {[%clk 0:01:39]}  Ra6 {[%clk 0:02:04]} 19. Rfc1 {[%clk 0:01:31]}  Bf5 {[%clk 0:02:01]} 20. Nxf6+ {[%clk 0:01:02]}  gxf6 {[%clk 0:02:01]} 21. Bh6 {[%clk 0:01:02]}  Bxb1 {[%clk 0:01:41]} 22. Rxb1 {[%clk 0:01:00]}  Qe6 {[%clk 0:01:16]} 23. Rb4 {[%clk 0:00:48]}  Kh8 {[%clk 0:00:52]} 24. a4 {[%clk 0:00:28]}  Rb6 {[%clk 0:00:46]} 25. Rg4 {[%clk 0:00:26]}  Rg8 {[%clk 0:00:44]} 26. Rc4 {[%clk 0:00:20]}  f5 {[%clk 0:00:29]} 27. Be3 {[%clk 0:00:17]}  f4 {[%clk 0:00:26]} 28. Bxb6 {[%clk 0:00:14]}  axb6 {[%clk 0:00:20]} 29. Rb4 {[%clk 0:00:13]}  Rc8 {[%clk 0:00:16]} 30. Qg5 {[%clk 0:00:09]}  h6 {[%clk 0:00:09]} 31. Qh5 {[%clk 0:00:08]}  Kg7 {[%clk 0:00:07]} 32. Rb5 {[%clk 0:00:08]}  Rc5 {[%clk 0:00:07]} 33. Rxc5 {[%clk 0:00:07]}  bxc5 {[%clk 0:00:08]} 34. Qf3 {[%clk 0:00:06]}  fxg3 {[%clk 0:00:06]} 35. hxg3 {[%clk 0:00:06]}  Qa2 {[%clk 0:00:05]} 36. Qc6 {[%clk 0:00:04]}  c4 {[%clk 0:00:04]} 37. Qb5 {[%clk 0:00:04]}  Qa1+ {[%clk 0:00:03]} 38. Kg2 {[%clk 0:00:03]}  Qd4 {[%clk 0:00:03]} 39. a5 {[%clk 0:00:03]}  c3 {[%clk 0:00:03]} 40. a6 {[%clk 0:00:03]}  c2 {[%clk 0:00:03]} 41. Qc6 {[%clk 0:00:04]}  Qb2 {[%clk 0:00:01]} 42. a7 {[%clk 0:00:03]}  c1=Q {[%clk 0:00:01]} 43. Qxc1 {[%clk 0:00:03]}  Qxc1 {[%clk 0:00:01]} 44. a8=Q {[%clk 0:00:04]}  Qb2 {[%clk 0:00:01]} 45. e3 {[%clk 0:00:04]}  Qc3 {[%clk 0:00:01]} 46. Qf3 {[%clk 0:00:04]}  Qc5 {[%clk 0:00:01]} 47. g4 {[%clk 0:00:04]}  Qd6 {[%clk 0:00:01]} 48. Qf5 {[%clk 0:00:05]}  Qf6 {[%clk 0:00:01]} 49. Kg3 {[%clk 0:00:05]}  Qxf5 {[%clk 0:00:02]} 50. gxf5 {[%clk 0:00:06]}  Kf6 {[%clk 0:00:02]} 51. e4 {[%clk 0:00:06]}  Kg5 {[%clk 0:00:03]} 52. f3 {[%clk 0:00:06]}  h5 {[%clk 0:00:03]} 53. Kh3 {[%clk 0:00:06]}  Kf4 {[%clk 0:00:03]} 54. Kh4 {[%clk 0:00:06]}  Kxf3 {[%clk 0:00:04]} 55. Kxh5 {[%clk 0:00:07]}  Kxe4 {[%clk 0:00:04]} 56. Kg5 {[%clk 0:00:07]}  Kf3 {[%clk 0:00:03]} 57. Kf6 {[%clk 0:00:08]}  e4 {[%clk 0:00:03]} 58. Kxf7 {[%clk 0:00:08]}  e3 {[%clk 0:00:04]} 59. Kg7 {[%clk 0:00:08]}  e2 {[%clk 0:00:05]} 60. f6 {[%clk 0:00:09]}  e1=Q {[%clk 0:00:06]} 61. f7 {[%clk 0:00:09]}  Qe7 {[%clk 0:00:06]} 62. Kh8 {[%clk 0:00:09]}  Qf6+ {[%clk 0:00:06]} 63. Kg8 {[%clk 0:00:09]}  Qg6+ {[%clk 0:00:07]} 64. Kh8 {[%clk 0:00:10]}  Qh6+ {[%clk 0:00:07]} 65. Kg8 {[%clk 0:00:10]}  Qg6+ {[%clk 0:00:07]} 66. Kh8 {[%clk 0:00:10]}  Qf6+ {[%clk 0:00:07]} 67. Kg8 {[%clk 0:00:10]}  Qe6 {[%clk 0:00:08]} 68. Kh8 {[%clk 0:00:10]}  Qe7 {[%clk 0:00:08]} 69. Kg8 {[%clk 0:00:10]}  Qe6 {[%clk 0:00:08]} 70. Kh8 {[%clk 0:00:10]}  Qd6 {[%clk 0:00:09]} 71. Kg8 {[%clk 0:00:09]}  Qe6 {[%clk 0:00:08]} 1/2-1/2


[Site "https://www.chess.com"]

[Event "Titled Tuesday Blitz August 08 Early 2023"]
[White "Rychagov, Andrey"]
[Black "AndresDelgado77"]
[WhiteFideId "4119932"]
[WhiteElo "2674"]
[BlackElo "2360"]
[Result "1-0"]
[Round "1"]
[TimeControl "180+1"]
[Date "2023.08.08"]
[WhiteClock "0:00:25"]
[BlackClock "0:00:00"]
[Board "146"]

1. d4 {[%clk 0:02:59]}  Nf6 {[%clk 0:02:57]} 2. c4 {[%clk 0:02:57]}  c6 {[%clk 0:02:57]} 3. Nf3 {[%clk 0:02:57]}  d5 {[%clk 0:02:54]} 4. Nc3 {[%clk 0:02:57]}  dxc4 {[%clk 0:02:53]} 5. a4 {[%clk 0:02:56]}  Bf5 {[%clk 0:02:52]} 6. Ne5 {[%clk 0:02:56]}  e6 {[%clk 0:02:52]} 7. e3 {[%clk 0:02:52]}  c5 {[%clk 0:01:53]} 8. Bxc4 {[%clk 0:02:47]}  cxd4 {[%clk 0:01:53]} 9. exd4 {[%clk 0:02:28]}  Nc6 {[%clk 0:01:52]} 10. Bb5 {[%clk 0:02:18]}  Rc8 {[%clk 0:01:51]} 11. Qf3 {[%clk 0:02:08]}  Qc7 {[%clk 0:01:32]} 12. g4 {[%clk 0:01:46]}  Bg6 {[%clk 0:01:26]} 13. h4 {[%clk 0:01:45]}  Bb4 {[%clk 0:01:22]} 14. O-O {[%clk 0:01:30]}  Bxc3 {[%clk 0:01:22]} 15. bxc3 {[%clk 0:01:29]}  Be4 {[%clk 0:01:11]} 16. Qe2 {[%clk 0:01:12]}  a6 {[%clk 0:01:05]} 17. Bxc6+ {[%clk 0:00:59]}  Bxc6 {[%clk 0:01:04]} 18. Bf4 {[%clk 0:00:58]}  Nd5 {[%clk 0:01:00]} 19. Bd2 {[%clk 0:00:58]}  O-O {[%clk 0:00:48]} 20. c4 {[%clk 0:00:58]}  Ne7 {[%clk 0:00:47]} 21. a5 {[%clk 0:00:53]}  Ng6 {[%clk 0:00:35]} 22. Nxc6 {[%clk 0:00:44]}  Qxc6 {[%clk 0:00:32]} 23. h5 {[%clk 0:00:42]}  Ne7 {[%clk 0:00:30]} 24. Rac1 {[%clk 0:00:37]}  f5 {[%clk 0:00:26]} 25. d5 {[%clk 0:00:34]}  Qd6 {[%clk 0:00:16]} 26. Rfe1 {[%clk 0:00:31]}  e5 {[%clk 0:00:14]} 27. Qxe5 {[%clk 0:00:30]}  Qxe5 {[%clk 0:00:13]} 28. Rxe5 {[%clk 0:00:30]}  Rce8 {[%clk 0:00:13]} 29. Rce1 {[%clk 0:00:29]}  Kf7 {[%clk 0:00:12]} 30. Bb4 {[%clk 0:00:29]}  fxg4 {[%clk 0:00:10]} 31. Rxe7+ {[%clk 0:00:28]}  Rxe7 {[%clk 0:00:10]} 32. Rxe7+ {[%clk 0:00:28]}  Kf6 {[%clk 0:00:10]} 33. Rxb7 {[%clk 0:00:27]}  Rc8 {[%clk 0:00:08]} 34. c5 {[%clk 0:00:27]}  g6 {[%clk 0:00:08]} 35. h6 {[%clk 0:00:26]}  g5 {[%clk 0:00:06]} 36. c6 {[%clk 0:00:25]}  Kg6 {[%clk 0:00:00]} 37. c7 {[%clk 0:00:25]} 1-0


[Site "https://www.chess.com"]

[Event "Titled Tuesday Blitz August 08 Early 2023"]
[White "KorolDimitriy75"]
[Black "Hoang, Thi Bao Tram"]
[BlackFideId "12401102"]
[WhiteElo "2359"]
[BlackElo "2671"]
[Result "0-1"]
[Round "1"]
[TimeControl "180+1"]
[Date "2023.08.08"]
[WhiteClock "0:00:00"]
[BlackClock "0:00:07"]
[Board "147"]

1. d4 {[%clk 0:03:00]}  d5 {[%clk 0:02:55]} 2. c4 {[%clk 0:03:00]}  c6 {[%clk 0:02:52]} 3. Nc3 {[%clk 0:03:00]}  Nf6 {[%clk 0:02:52]} 4. e3 {[%clk 0:03:01]}  g6 {[%clk 0:02:49]} 5. Nf3 {[%clk 0:03:01]}  Bg7 {[%clk 0:02:50]} 6. h3 {[%clk 0:03:01]}  O-O {[%clk 0:02:49]} 7. Bd3 {[%clk 0:03:01]}  Be6 {[%clk 0:02:49]} 8. Ng5 {[%clk 0:02:50]}  Bc8 {[%clk 0:02:47]} 9. O-O {[%clk 0:02:48]}  a6 {[%clk 0:02:46]} 10. b3 {[%clk 0:02:43]}  dxc4 {[%clk 0:02:40]} 11. bxc4 {[%clk 0:02:42]}  c5 {[%clk 0:02:32]} 12. Nf3 {[%clk 0:02:29]}  Nc6 {[%clk 0:02:26]} 13. d5 {[%clk 0:02:28]}  Nb4 {[%clk 0:02:25]} 14. Rb1 {[%clk 0:02:17]}  Qa5 {[%clk 0:02:14]} 15. a3 {[%clk 0:01:53]}  Nxd3 {[%clk 0:02:11]} 16. Qxd3 {[%clk 0:01:54]}  Ne8 {[%clk 0:01:41]} 17. Bd2 {[%clk 0:01:51]}  Qc7 {[%clk 0:01:34]} 18. a4 {[%clk 0:01:42]}  Bd7 {[%clk 0:01:26]} 19. e4 {[%clk 0:01:30]}  Rd8 {[%clk 0:01:24]} 20. Rb2 {[%clk 0:01:15]}  Bc8 {[%clk 0:01:21]} 21. Rfb1 {[%clk 0:01:06]}  e6 {[%clk 0:01:19]} 22. Bg5 {[%clk 0:00:55]}  f6 {[%clk 0:01:17]} 23. Bh4 {[%clk 0:00:45]}  Qa5 {[%clk 0:01:03]} 24. Rb3 {[%clk 0:00:26]}  e5 {[%clk 0:00:39]} 25. Rb6 {[%clk 0:00:20]}  Rd6 {[%clk 0:00:35]} 26. R6b3 {[%clk 0:00:17]}  f5 {[%clk 0:00:26]} 27. Be7 {[%clk 0:00:16]}  Rf7 {[%clk 0:00:21]} 28. Bxd6 {[%clk 0:00:15]}  Nxd6 {[%clk 0:00:21]} 29. Rb6 {[%clk 0:00:12]}  Rd7 {[%clk 0:00:18]} 30. Ng5 {[%clk 0:00:10]}  Bf6 {[%clk 0:00:15]} 31. Ne6 {[%clk 0:00:10]}  f4 {[%clk 0:00:10]} 32. R1b3 {[%clk 0:00:06]}  Kf7 {[%clk 0:00:09]} 33. g3 {[%clk 0:00:03]}  g5 {[%clk 0:00:08]} 34. Kg2 {[%clk 0:00:03]}  Be7 {[%clk 0:00:08]} 35. Qf3 {[%clk 0:00:03]}  Kg6 {[%clk 0:00:08]} 36. h4 {[%clk 0:00:00]}  Nxc4 {[%clk 0:00:07]} 0-1


[Site "https://www.chess.com"]

[Event "Titled Tuesday Blitz August 08 Early 2023"]
[White "Kanyamarala, Trisha"]
[Black "Weetik, Vjacheslav"]
[WhiteFideId "45004722"]
[BlackFideId "4153472"]
[WhiteElo "2353"]
[BlackElo "2665"]
[Result "0-1"]
[Round "1"]
[TimeControl "180+1"]
[Date "2023.08.08"]
[WhiteClock "0:00:02"]
[BlackClock "0:00:30"]
[Board "153"]

1. c4 {[%clk 0:02:55]}  Nf6 {[%clk 0:02:56]} 2. Nc3 {[%clk 0:02:54]}  g6 {[%clk 0:02:57]} 3. g3 {[%clk 0:02:54]}  c6 {[%clk 0:02:56]} 4. Bg2 {[%clk 0:02:54]}  d5 {[%clk 0:02:57]} 5. d4 {[%clk 0:02:51]}  dxc4 {[%clk 0:02:53]} 6. Nf3 {[%clk 0:02:49]}  Bg7 {[%clk 0:02:53]} 7. Ne5 {[%clk 0:02:49]}  Ng4 {[%clk 0:02:50]} 8. Nf3 {[%clk 0:02:11]}  O-O {[%clk 0:02:40]} 9. O-O {[%clk 0:02:11]}  b5 {[%clk 0:02:35]} 10. h3 {[%clk 0:02:08]}  Nf6 {[%clk 0:02:33]} 11. Re1 {[%clk 0:01:54]}  Nbd7 {[%clk 0:02:05]} 12. Ne5 {[%clk 0:01:47]}  Nxe5 {[%clk 0:01:53]} 13. dxe5 {[%clk 0:01:48]}  Nd5 {[%clk 0:01:33]} 14. Nxd5 {[%clk 0:01:41]}  cxd5 {[%clk 0:01:34]} 15. Qxd5 {[%clk 0:01:39]}  Be6 {[%clk 0:00:55]} 16. Qxa8 {[%clk 0:01:37]}  Qa5 {[%clk 0:00:55]} 17. Bd2 {[%clk 0:01:25]}  Qxd2 {[%clk 0:00:55]} 18. Qxa7 {[%clk 0:01:22]}  Bxe5 {[%clk 0:00:53]} 19. Qxe7 {[%clk 0:01:12]}  Qxb2 {[%clk 0:00:38]} 20. Rab1 {[%clk 0:01:07]}  Qxa2 {[%clk 0:00:38]} 21. Rxb5 {[%clk 0:01:06]}  Bc3 {[%clk 0:00:35]} 22. Rc1 {[%clk 0:01:02]}  Qxe2 {[%clk 0:00:34]} 23. Bf1 {[%clk 0:00:52]}  Qd2 {[%clk 0:00:32]} 24. Qa3 {[%clk 0:00:46]}  Bd4 {[%clk 0:00:30]} 25. Bxc4 {[%clk 0:00:14]}  Qxf2+ {[%clk 0:00:30]} 26. Kh1 {[%clk 0:00:14]}  Bxc4 {[%clk 0:00:30]} 27. Rxc4 {[%clk 0:00:02]}  Qg1# {[%clk 0:00:30]} 0-1


[Site "https://www.chess.com"]